bitfinex-derivatives/quotes_ETHF0:USTF0_20260125
["timestamp","ask_amount","ask_price","bid_price","bid_amount"]
[1769365496865,0.22622032,2869.5,2867.3,0.22624587]
[1769365497057,0.00413944,2869.7,2867.3,0.22624587]
[1769365497058,0.22622032,2869.3,2867.3,0.22624587]
[1769365497369,2.27222032,2869.2,2867.3,0.22624587]
[1769365498258,0.22622032,2869.1,2867.3,0.22624587]
[1769365499566,2.046,2869.1,2867.3,0.22624587]
[1769365499963,2.046,2869.3,2867.3,0.22624587]
[1769365500363,0.22622032,2869.2,2867.3,0.22624587]
[1769365501264,0.22622032,2869.1,2867.3,0.00386604]
[1769365501460,0.22622032,2869.0,2867.3,0.00386604]
[1769365501670,0.40078032,2868.4,2867.3,0.00386604]
[1769365501858,0.22622032,2868.2,2867.3,0.00386604]
[1769365502565,2.046,2868.1,2867.3,0.00386604]
[1769365503358,2.24943762,2868.1,2867.3,0.00386604]
[1769365503565,2.22059,2868.0,2865.8,0.2115414]
[1769365503869,0.20343762,2867.8,2865.8,0.2115414]
[1769365504669,2.046,2867.9,2865.9,0.2115414]
[1769365504867,2.24943762,2867.9,2865.9,0.2115414]
[1769365505064,0.1746,2867.7,2865.9,0.2115414]
[1769365505267,0.20343762,2867.6,2865.8,0.00267301]
[1769365505472,0.20648612,2867.6,2865.8,0.00267301]
[1769365505772,0.37805762,2867.5,2865.8,0.00267301]
[1769365505966,0.0030485,2867.6,2865.8,0.21421441]
[1769365506571,0.20343762,2867.4,2865.8,0.00267301]
[1769365506878,0.20343762,2867.2,2865.8,0.00267301]
[1769365507778,2.0500485,2867.6,2865.8,0.21421441]
[1769365508373,0.0030485,2867.6,2865.8,0.21421441]
[1769365508767,0.20648612,2867.6,2865.8,0.21421441]
[1769365509178,0.0030485,2867.6,2865.8,0.21421441]
[1769365509586,0.0030485,2867.6,2866.2,0.2115414]
[1769365509780,0.17456,2868.4,2866.2,0.2115414]
[1769365510280,0.20343762,2868.8,2866.4,0.2115414]
[1769365510474,2.25043762,2868.8,2866.4,0.2115414]
[1769365510778,0.17792907,2868.8,2866.4,0.2115414]
[1769365510980,0.20343762,2868.1,2865.8,0.00267301]
[1769365511185,0.20343762,2868.1,2865.9,0.2115414]
[1769365511581,0.20343762,2867.9,2865.9,0.2115414]
[1769365511784,0.20343762,2867.9,2865.8,0.00267301]
[1769365511785,0.20343762,2867.7,2865.8,0.00267301]
[1769365511980,0.20343762,2867.6,2865.8,0.00267301]
[1769365515184,0.1746,2867.7,2865.8,0.20550336]
[1769365515375,0.20256012,2868.6,2866.1,0.20283035]
[1769365515580,0.20256012,2868.4,2866.1,0.20283035]
[1769365515777,0.00338907,2868.8,2866.1,0.20283035]
[1769365516182,0.20594919,2868.8,2866.1,0.20283035]
[1769365516677,0.20594919,2868.8,2866.3,0.20283035]
[1769365517281,0.20594919,2868.8,2866.5,0.20283035]
[1769365517480,0.20256012,2868.6,2866.5,0.20283035]
[1769365517780,0.17456,2868.4,2866.0,0.20283035]
[1769365517978,0.37713012,2868.3,2866.0,0.20283035]
[1769365518180,0.20594919,2868.8,2866.1,0.20283035]
[1769365520886,0.20256012,2868.6,2866.3,0.20283035]
[1769365521085,0.20256012,2868.5,2866.3,0.20283035]
[1769365521278,0.20256012,2868.3,2866.3,0.20283035]
[1769365522280,0.37715012,2868.0,2865.9,0.20283035]
[1769365522481,0.20256012,2867.9,2865.9,0.20283035]
[1769365522984,0.20256012,2867.8,2865.9,0.20283035]
[1769365523281,0.20256012,2867.8,2865.8,0.00267301]
[1769365523985,0.20256012,2867.6,2865.8,0.00267301]
[1769365525585,0.37717012,2867.6,2865.8,0.00267301]
[1769365526384,0.20256012,2867.6,2865.8,0.20550336]
[1769365526591,0.20256012,2868.1,2865.8,0.20550336]
[1769365527177,0.20256012,2868.7,2866.3,0.20283035]
[1769365527480,0.20256012,2868.7,2866.5,0.20283035]
[1769365529680,0.00338907,2868.8,2866.5,0.20283035]
[1769365530686,0.20594919,2868.8,2866.7,0.20283035]
[1769365530884,0.20594919,2868.8,2866.8,3.69383035]
[1769365531182,0.20594919,2868.8,2866.9,2.047]
[1769365531387,0.20594919,2868.8,2866.9,5.538]
[1769365531990,0.20594919,2868.8,2866.9,5.74083035]
[1769365532285,0.20594919,2868.8,2866.9,0.20283035]
[1769365532696,0.20594919,2868.8,2866.9,5.74083035]
[1769365533285,0.20594919,2868.8,2866.4,0.18715574]
[1769365533589,0.17798156,2868.7,2866.5,5.72415574]
[1769365534085,0.17798156,2868.7,2866.6,5.537]
[1769365534487,0.17798156,2868.7,2866.6,5.72415574]
[1769365534992,0.17798156,2868.7,2866.7,0.18715574]
[1769365535592,0.17798156,2868.7,2866.7,5.72415574]
[1769365536093,0.17798156,2868.7,2866.7,2.23415574]
[1769365536293,0.17798156,2868.7,2866.7,5.72415574]
[1769365538599,0.00338907,2868.8,2866.8,0.18715574]
[1769365541696,0.17446,2870.1,2867.2,0.18715574]
[1769365541888,0.17798156,2870.0,2867.2,0.18715574]
[1769365542188,4.07606805,2871.0,2867.2,0.18715574]
[1769365542189,0.35246156,2869.7,2867.2,0.18715574]
[1769365542389,0.17798156,2869.6,2867.3,0.18715574]
[1769365542593,0.18248845,2869.6,2867.3,0.18715574]
[1769365543097,0.18248845,2869.6,2867.4,5.537]
[1769365543289,0.18248845,2869.6,2867.5,0.18715574]
[1769365543790,0.18248845,2869.6,2867.5,2.23415574]
[1769365544393,0.18248845,2869.6,2867.6,0.18715574]
[1769365544594,0.18248845,2869.6,2867.7,2.047]
[1769365545499,0.18248845,2869.6,2867.7,2.23415574]
[1769365550096,0.00450689,2869.6,2867.8,0.18715574]
[1769365550996,0.18248845,2869.6,2867.7,2.046]
[1769365551599,0.17798156,2869.5,2867.2,0.18715574]
[1769365551791,0.17798156,2869.5,2867.4,0.18715574]
[1769365553599,0.17798156,2869.5,2867.1,1.19070718]
[1769365553801,0.17798156,2868.5,2866.7,10.25729276]
[1769365554000,0.17798156,2868.5,2866.6,8.99878104]
[1769365554001,0.17798156,2868.5,2866.4,0.18715574]
[1769365554401,0.17798156,2869.0,2866.4,0.18715574]
[1769365554702,0.17798156,2868.8,2866.5,5.535]
[1769365554899,0.17798156,2868.8,2866.6,0.18715574]
[1769365560014,0.17798156,2868.8,2866.7,2.047]
[1769365560312,0.17798156,2868.8,2866.8,0.18715574]
[1769365560712,0.17798156,2868.7,2866.5,8.99878104]
[1769365560914,0.17798156,2868.1,2866.5,8.99878104]
[1769365561108,0.17798156,2867.9,2866.0,0.18715574]
[1769365561706,0.17798156,2868.4,2866.1,0.18715574]
[1769365562005,0.35251156,2868.9,2866.3,0.18715574]
[1769365562209,0.17798156,2868.7,2866.3,0.18715574]
[1769365562410,0.17798156,2868.6,2866.4,5.537]
[1769365562616,0.35253156,2868.6,2866.4,5.537]
[1769365562807,0.17798156,2868.5,2866.4,5.537]
[1769365563312,0.17798156,2868.5,2866.5,0.17809258]
[1769365563810,0.1780895,2868.4,2866.2,8.99878104]
[1769365564305,0.1780895,2868.1,2866.0,2.22509258]
[1769365564506,0.1780895,2867.7,2866.0,2.047]
[1769365564708,0.1780895,2867.6,2865.8,0.00267301]
[1769365565412,0.1780895,2867.0,2865.8,0.00267301]
[1769365565618,0.1780895,2866.6,2864.8,10.25729276]
[1769365565919,0.3527595,2866.6,2864.5,8.99878104]
[1769365566104,0.1780895,2866.5,2864.4,2.047]
[1769365566617,0.1780895,2866.5,2864.4,2.05082633]
[1769365566913,0.1780895,2866.3,2864.4,0.00382633]
[1769365568214,0.3527995,2866.1,2864.4,0.00382633]
[1769365568413,0.1780895,2865.9,2864.4,0.00382633]
[1769365571321,0.1780895,2866.4,2864.4,0.18191891]
[1769365572316,0.1780895,2866.9,2864.9,0.17809258]
[1769365573422,0.1780895,2866.9,2864.4,0.18191891]
[1769365574021,0.1780895,2866.8,2864.4,0.18191891]
[1769365574218,0.00289294,2867.0,2865.4,1.37042012]
[1769365574424,0.18098244,2867.0,2864.9,3.41842012]
[1769365574718,0.1780895,2866.5,2864.4,0.00382633]
[1769365574921,0.1780895,2866.3,2864.4,0.00382633]
[1769365575122,0.16562837,2865.9,2864.4,0.00382633]
[1769365576413,0.16562837,2866.7,2864.7,1.19232754]
[1769365576618,0.00289294,2867.0,2864.9,0.17439801]
[1769365576819,0.16562837,2866.9,2864.8,5.54]
[1769365577014,0.16562837,2866.8,2864.8,5.54]
[1769365577424,0.16562837,2866.8,2864.8,5.71439801]
[1769365577627,0.16562837,2866.8,2864.9,0.17439801]
[1769365577826,0.16562837,2866.8,2865.0,5.54]
[1769365579419,0.16562837,2866.8,2865.0,5.71439801]
[1769365579615,0.00289294,2867.0,2865.3,1.36672555]
[1769365579821,0.16852131,2867.0,2865.4,5.54]
[1769365580124,0.16852131,2867.0,2865.4,2.048]
[1769365580324,0.16852131,2867.0,2865.3,2.048]
[1769365580729,0.16562837,2866.6,2864.7,3.492]
[1769365580922,0.16562837,2866.6,2864.8,2.048]
[1769365581720,0.16562837,2866.6,2864.4,0.00382633]
[1769365582031,0.16562837,2866.6,2864.5,5.54]
[1769365582521,1.19232754,2866.9,2864.4,0.00382633]
[1769365582522,0.16562837,2866.4,2864.4,0.00382633]
[1769365582726,0.16562837,2866.1,2864.4,0.00382633]
[1769365583125,1.19232754,2866.4,2864.4,0.00382633]
[1769365583126,0.16562837,2866.0,2864.4,0.00382633]
[1769365583931,0.16562837,2865.3,2864.4,0.00382633]
[1769365585027,0.16562837,2865.3,2863.1,0.17439801]
[1769365585222,0.16562837,2865.3,2863.2,5.541]
[1769365586128,0.17473,2865.4,2863.5,0.17439801]
[1769365586432,0.16562837,2865.8,2863.5,0.17439801]
[1769365587223,0.16562837,2865.8,2863.6,5.541]
[1769365587422,0.16562837,2865.8,2863.7,0.17439801]
[1769365590632,0.16562837,2866.3,2864.0,0.17439801]
[1769365591030,0.16562837,2865.6,2863.5,2.22339801]
[1769365591230,0.16562837,2865.6,2863.6,0.17439801]
[1769365591729,0.16562837,2865.8,2863.7,5.542]
[1769365591930,0.16562837,2865.8,2863.8,5.542]
[1769365592326,0.16562837,2865.8,2863.6,0.17439801]
[1769365592628,0.16562837,2865.5,2863.6,0.17439801]
[1769365592828,0.16562837,2865.4,2863.6,3.493]
[1769365593131,0.15827921,2865.0,2863.2,0.00285038]
[1769365594626,0.15827921,2865.0,2863.2,2.05185038]
[1769365594832,0.15827921,2864.6,2862.5,0.06077706]
[1769365595033,0.15827921,2863.2,2859.9,11.86048109]
[1769365595233,0.15827921,2863.2,2859.7,11.95433323]
[1769365595234,0.15827921,2862.6,2859.8,0.1562913]
[1769365595426,0.15827921,2863.1,2860.2,0.1562913]
[1769365595634,0.15827921,2863.6,2861.2,0.1562913]
[1769365595830,0.15827921,2863.6,2861.4,0.1562913]
[1769365596037,0.00393109,2863.6,2862.1,0.1562913]
[1769365596233,0.00393109,2863.6,2862.2,2.049]
[1769365596439,0.1622103,2863.6,2861.7,2.2052913]
[1769365596634,0.1622103,2863.6,2861.8,2.049]
[1769365596841,0.1622103,2863.6,2862.2,39.05255923]
[1769365597042,0.1622103,2863.6,2862.3,39.05255923]
[1769365597239,0.1622103,2863.6,2861.8,2.2052913]
[1769365597240,0.1622103,2863.6,2862.0,39.05255923]
[1769365597537,0.00393109,2863.6,2862.2,39.05255923]
[1769365598046,0.1622103,2863.6,2862.5,39.05255923]
[1769365598233,0.15827921,2863.4,2861.5,0.1353]
[1769365598426,0.15827921,2863.2,2861.5,0.1353]
[1769365598632,0.15827921,2863.0,2861.5,0.1353]
[1769365598833,0.15827921,2862.8,2861.5,0.1353]
[1769365599046,6.70014538,2862.9,2860.3,2.049]
[1769365599047,0.15827921,2862.6,2860.3,2.049]
[1769365599230,0.15827921,2862.4,2860.3,2.049]
[1769365599436,4.65114538,2862.3,2860.3,2.049]
[1769365599643,4.65114538,2862.2,2860.3,2.049]
[1769365599843,0.15827921,2862.0,2859.9,0.1562913]
[1769365600041,0.15827921,2861.8,2859.9,0.1562913]
[1769365600644,0.15827921,2861.8,2860.1,39.05255923]
[1769365600939,0.17491,2862.4,2860.1,39.05255923]
[1769365600940,0.15827921,2862.4,2860.2,0.1562913]
[1769365601134,0.15827921,2862.9,2860.8,0.1562913]
[1769365601335,0.15827921,2863.4,2860.8,0.1562913]
[1769365601535,9.98861709,2866.0,2861.1,0.1562913]
[1769365601536,0.15827921,2863.2,2861.1,0.1562913]
[1769365601740,4.62315141,2863.1,2861.2,2.2062913]
[1769365601941,0.15827921,2863.2,2861.2,2.2062913]
[1769365602146,0.15827921,2863.2,2861.3,39.05255923]
[1769365602334,0.15827921,2863.2,2861.2,2.2062913]
[1769365602335,4.62125878,2863.1,2861.2,0.1562913]
[1769365602647,0.15827921,2863.0,2861.2,0.1562913]
[1769365602840,4.62043353,2862.9,2860.6,0.1562913]
[1769365603040,0.15827921,2862.6,2860.1,0.16003692]
[1769365603242,0.15827921,2862.2,2860.1,0.00374562]
[1769365603541,8.1134876,2862.5,2858.5,0.1562913]
[1769365603542,0.15827921,2861.2,2858.5,0.1562913]
[1769365603751,0.15827921,2861.1,2858.6,0.1562913]
[1769365603941,0.15827921,2861.1,2858.7,0.1562913]
[1769365604140,0.15827921,2861.6,2859.2,0.1562913]
[1769365604348,0.15827921,2861.6,2859.3,0.1562913]
[1769365604549,0.00405351,2861.6,2859.6,0.1562913]
[1769365604742,0.15827921,2862.8,2860.9,39.20885053]
[1769365605042,0.15827921,2862.8,2860.4,0.1562913]
[1769365605244,0.15827921,2862.6,2860.4,0.1562913]
[1769365605452,0.15827921,2862.6,2860.5,0.1562913]
[1769365605749,0.15827921,2862.6,2860.6,0.1562913]
[1769365605949,0.16185121,2862.6,2860.9,39.05255923]
[1769365606146,0.16185121,2862.6,2860.1,0.1562913]
[1769365606350,0.003572,2862.6,2860.4,0.1562913]
[1769365606553,0.003572,2862.6,2860.7,39.20885053]
[1769365606743,0.16185121,2862.6,2860.7,0.1562913]
[1769365606944,0.16185121,2862.6,2860.8,39.05255923]
[1769365607353,4.07606805,2864.0,2862.1,0.1562913]
[1769365607549,0.15827921,2864.3,2862.1,0.1562913]
[1769365607749,0.17488,2863.0,2860.3,0.1562913]
[1769365607953,0.15827921,2862.7,2860.4,3.496]
[1769365608142,0.15827921,2862.1,2860.4,3.496]
[1769365608344,0.16089096,2862.1,2860.4,0.00296115]
[1769365608744,4.66011054,2862.0,2860.4,0.00296115]
[1769365608948,0.15827921,2861.9,2860.4,0.00296115]
[1769365609150,0.15827921,2861.9,2860.4,39.05552038]
[1769365609338,0.00261175,2862.1,2860.4,0.15925245]
[1769365609538,0.00261175,2862.1,2860.6,39.05255923]
[1769365609748,0.00261175,2862.1,2860.5,5.548]
[1769365609947,0.00261175,2862.1,2860.7,39.05255923]
[1769365610245,0.00261175,2862.1,2860.8,2.051]
[1769365610550,0.00261175,2862.1,2860.8,39.05255923]
[1769365610746,0.00261175,2862.1,2860.8,41.10355923]
[1769365611144,0.00261175,2862.1,2860.9,39.05255923]
[1769365611339,0.15827921,2861.8,2860.4,0.00296115]
[1769365611546,0.15827921,2861.6,2860.4,0.00296115]
[1769365611852,0.15827921,2861.6,2858.4,3.6532913]
[1769365611853,0.15827921,2860.9,2858.4,3.6532913]
[1769365612144,0.17505,2860.2,2856.9,1.54239826]
[1769365612346,0.15827921,2859.8,2857.2,0.1562913]
[1769365612550,0.15827921,2859.6,2857.2,0.1562913]
[1769365612750,1.54239826,2859.2,2857.2,0.00282797]
[1769365612947,4.65250693,2859.1,2857.2,0.00282797]
[1769365613147,0.15827921,2859.2,2857.2,0.00282797]
[1769365613349,0.00326672,2859.6,2857.3,0.1562913]
[1769365613548,0.00326672,2859.6,2858.1,0.1562913]
[1769365613753,0.33326921,2861.1,2858.9,39.05255923]
[1769365614051,0.15827921,2861.7,2859.1,0.1562913]
[1769365614347,0.15827921,2862.3,2859.5,39.20885053]
[1769365614547,0.27563033,2862.6,2859.7,0.1562913]
[1769365614852,0.00413837,2862.6,2860.1,0.1562913]
[1769365615049,0.00413837,2862.6,2861.1,0.1562913]
[1769365615245,0.17482,2863.8,2861.7,0.1562913]
[1769365615559,0.17478,2864.5,2862.4,39.05255923]
[1769365615857,4.81629102,2864.4,2862.3,2.051]
[1769365616045,0.17485,2863.5,2861.6,0.1562913]
[1769365616241,4.81597216,2863.4,2861.6,0.00410494]
[1769365616439,0.17488,2862.9,2861.6,0.00410494]
[1769365616655,0.17491,2862.5,2860.4,0.1562913]
[1769365616857,0.15827921,2862.8,2860.5,2.051]
[1769365617050,0.15827921,2862.6,2859.0,0.1562913]
[1769365617350,0.17497,2861.5,2859.1,0.1562913]
[1769365617556,0.17497,2861.5,2859.3,0.1562913]
[1769365617741,0.15827921,2861.3,2859.3,0.00274183]
[1769365618053,0.175,2861.0,2859.3,0.00274183]
[1769365618351,0.175,2861.0,2859.3,39.21159236]
[1769365618549,0.175,2861.0,2859.3,0.00274183]
[1769365618851,0.175,2861.0,2859.6,39.05255923]
[1769365619056,0.175,2861.0,2859.3,0.00274183]
[1769365619353,0.175,2861.0,2859.3,39.05530106]
[1769365619748,0.175,2861.0,2859.4,39.05255923]
[1769365619950,0.175,2861.0,2859.3,0.00274183]
[1769365620154,0.175,2861.0,2859.6,39.05255923]
[1769365620355,0.175,2861.0,2859.5,39.05255923]
[1769365620543,0.33327921,2861.0,2859.3,0.00274183]
[1769365620852,4.9971784,2860.9,2859.3,0.00274183]
[1769365621046,4.66389919,2860.8,2859.3,0.00274183]
[1769365621455,0.00421224,2861.3,2859.7,39.05255923]
[1769365621652,4.66703035,2861.2,2859.7,39.05255923]
[1769365621848,0.00421224,2861.3,2859.7,39.05255923]
[1769365622057,0.00421224,2861.3,2860.2,39.05255923]
[1769365622354,0.00421224,2861.3,2860.0,39.05255923]
[1769365622751,0.00421224,2861.3,2860.3,39.05255923]
[1769365622951,0.00421224,2861.3,2860.1,39.05255923]
[1769365623143,4.67415821,2861.2,2859.6,39.05255923]
[1769365623347,0.00421224,2861.3,2859.6,0.16828469]
[1769365623555,0.00421224,2861.3,2860.0,39.05255923]
[1769365623951,0.00421224,2861.3,2860.2,39.05255923]
[1769365624157,0.00421224,2861.3,2860.3,2.052]
[1769365624355,4.07606805,2862.2,2861.0,39.05255923]
[1769365624553,0.16988059,2862.8,2860.9,39.05255923]
[1769365624748,0.16988059,2861.4,2859.3,0.00274183]
[1769365624952,8.76276059,2861.3,2859.3,2.22302652]
[1769365625153,4.68669254,2861.2,2859.3,2.05474183]
[1769365625358,4.68669254,2861.1,2859.5,39.05255923]
[1769365625660,0.00440889,2861.2,2860.3,0.16828469]
[1769365625958,4.25098805,2862.2,2861.1,39.05255923]
[1769365626155,4.07606805,2861.7,2860.3,2.052]
[1769365626358,8.76007574,2861.6,2860.3,2.052]
[1769365626559,4.68400769,2861.5,2860.3,2.052]
[1769365626756,4.68670759,2861.5,2860.3,2.052]
[1769365626955,0.0026999,2861.5,2860.8,39.05255923]
[1769365627356,4.6927062,2861.4,2859.3,0.17102652]
[1769365627555,4.6927062,2861.3,2859.4,2.22028469]
[1769365627754,4.6927062,2861.3,2859.5,0.16828469]
[1769365628261,4.07606805,2862.4,2859.8,0.16828469]
[1769365628464,4.25093805,2863.1,2859.8,0.16828469]
[1769365628664,0.16988059,2862.9,2859.8,0.16828469]
[1769365628869,0.17769908,2862.5,2859.9,5.551]
[1769365629164,0.17769908,2862.5,2860.0,0.17769908]
[1769365629355,0.18158332,2862.5,2860.0,0.17769908]
[1769365630360,0.00388424,2862.5,2860.0,0.17769908]
[1769365630566,0.18158837,2862.5,2859.4,0.17770413]
[1769365630760,0.17770413,2861.7,2859.5,5.551]
[1769365631066,0.17770413,2861.7,2859.6,5.55]
[1769365631757,0.17770413,2861.7,2859.3,0.00274183]
[1769365631960,0.17770413,2861.7,2859.4,5.55]
[1769365632858,0.17770413,2861.7,2859.5,5.55]
[1769365633059,6.14518113,2862.5,2859.6,0.17794692]
[1769365633060,4.25401497,2862.3,2859.6,0.17794692]
[1769365633259,4.07606805,2861.6,2843.3,6.354]
[1769365633461,4.07606805,2861.6,2842.0,10.195]
[1769365633462,0.18136629,2859.7,2856.6,2.052]
[1769365633766,0.18136629,2859.7,2856.6,2.33276156]
[1769365634164,0.18125919,2860.3,2856.7,3.67822235]
[1769365634467,0.1844216,2860.3,2856.8,30.042]
[1769365634665,0.1844216,2860.3,2856.8,33.537]
[1769365634865,0.1844216,2860.3,2856.9,3.67822235]
[1769365635362,0.1844216,2860.3,2857.0,0.19485084]
[1769365635770,0.1844216,2860.3,2857.2,0.19485084]
[1769365636775,4.07606805,2861.7,2857.4,0.26140514]
[1769365636965,4.25098805,2862.6,2858.1,0.26140514]
[1769365637163,0.17492,2862.6,2858.1,0.26140514]
[1769365637464,4.25098805,2862.6,2858.3,0.26140514]
[1769365637666,4.07606805,2862.4,2858.5,0.26140514]
[1769365638064,4.25102805,2861.8,2858.5,0.26140514]
[1769365638368,0.17505,2860.4,2858.3,2.052]
[1769365638572,0.27022582,2859.8,2857.6,3.499]
[1769365638765,0.27022582,2859.6,2857.7,2.052]
[1769365639075,0.27022582,2859.6,2856.5,0.26140514]
[1769365639260,0.27022582,2858.9,2856.8,5.551]
[1769365639466,0.27022582,2858.9,2855.9,0.26140514]
[1769365639764,0.17514,2859.0,2856.5,3.499]
[1769365639765,4.33993064,2858.7,2856.5,3.499]
[1769365639964,0.27022582,2858.5,2856.5,5.551]
[1769365640160,0.27022582,2858.2,2856.6,2.052]
[1769365640369,0.27022582,2858.2,2856.2,2.052]
[1769365640370,0.27022582,2858.0,2856.2,2.052]
[1769365640571,0.27022582,2857.8,2856.2,2.052]
[1769365640775,4.60619148,2857.7,2856.2,2.052]
[1769365640969,0.27334402,2858.2,2856.2,2.052]
[1769365641164,4.87746753,2858.1,2856.2,2.052]
[1769365641373,0.0031182,2858.2,2856.3,0.26140514]
[1769365641771,0.27334402,2858.2,2856.4,5.552]
[1769365642081,0.27334402,2858.2,2856.2,0.00376287]
[1769365642273,0.27022582,2858.0,2856.2,0.00376287]
[1769365642866,0.27022582,2858.0,2856.3,5.553]
[1769365643068,0.27022582,2858.0,2856.4,5.553]
[1769365643776,0.0031182,2858.2,2856.4,5.553]
[1769365644276,0.0031182,2858.2,2856.4,0.26140514]
[1769365644474,0.0031182,2858.2,2856.5,5.554]
[1769365644771,0.0031182,2858.2,2856.6,5.554]
[1769365645172,0.0031182,2858.2,2856.7,5.554]
[1769365645466,0.27022582,2859.6,2856.9,0.26140514]
[1769365645970,0.27022582,2860.8,2856.9,0.26140514]
[1769365646171,0.27022582,2860.8,2857.1,0.26140514]
[1769365646374,0.27299205,2860.8,2857.1,0.26140514]
[1769365646563,0.27022582,2860.6,2857.3,0.26140514]
[1769365646769,0.27022582,2860.1,2857.5,0.26140514]
[1769365647077,0.27022582,2859.8,2857.4,2.053]
[1769365647366,0.27022582,2860.3,2857.5,0.26140514]
[1769365647967,0.27022582,2860.1,2857.5,0.26140514]
[1769365648171,0.27022582,2859.9,2857.6,5.554]
[1769365648369,0.27022582,2859.7,2857.7,3.501]
[1769365648573,0.27022582,2859.5,2857.8,2.053]
[1769365649278,0.27022582,2858.8,2856.7,3.501]
[1769365649572,0.27022582,2858.8,2856.2,0.00376287]
[1769365649770,0.44537582,2858.8,2856.8,5.554]
[1769365650167,0.27022582,2858.8,2856.8,5.554]
[1769365650367,0.27022582,2859.3,2856.8,5.554]
[1769365650564,0.27022582,2859.1,2856.8,5.554]
[1769365650971,4.86651947,2859.0,2856.8,5.554]
[1769365651172,0.27022582,2858.6,2856.2,0.00376287]
[1769365651371,0.27022582,2858.4,2856.2,0.00376287]
[1769365651576,0.27022582,2858.2,2856.3,2.053]
[1769365652576,0.27022582,2856.8,2853.9,0.26140514]
[1769365652776,0.17529,2856.5,2854.0,2.053]
[1769365653081,0.27022582,2856.8,2854.1,0.3223667]
[1769365653286,0.257153,2856.3,2853.8,1.32463658]
[1769365653573,0.257153,2856.2,2853.8,1.32752209]
[1769365653772,0.257153,2856.2,2853.9,0.2379836]
[1769365653969,0.00332123,2856.3,2853.9,0.2379836]
[1769365654167,0.00332123,2856.3,2854.0,5.7939836]
[1769365654368,0.00332123,2856.3,2854.1,0.2379836]
[1769365654774,0.26047423,2856.3,2854.2,5.556]
[1769365654968,0.00332123,2856.3,2854.3,0.2379836]
[1769365655177,0.257153,2857.6,2854.3,0.2379836]
[1769365655674,0.257153,2857.6,2854.4,2.2919836]
[1769365655972,0.1752,2858.0,2854.5,0.2379836]
[1769365656278,0.257153,2857.5,2854.7,0.2379836]
[1769365656471,0.257153,2857.5,2854.8,5.556]
[1769365656673,0.257153,2857.1,2854.9,3.502]
[1769365656873,0.17521,2857.8,2855.0,0.2379836]
[1769365657071,0.0044244,2858.0,2855.0,0.2379836]
[1769365657781,0.0044244,2858.0,2855.2,0.2379836]
[1769365657971,0.0044244,2858.0,2855.4,0.2379836]
[1769365658374,0.257153,2857.5,2855.5,3.503]
[1769365658573,0.257153,2857.5,2855.0,2.054]
[1769365659079,0.17524,2857.3,2855.1,0.2379836]
[1769365659381,0.2615774,2858.0,2855.3,0.2379836]
[1769365659577,0.257153,2857.8,2855.4,5.557]
[1769365659777,0.257153,2857.5,2854.7,0.2379836]
[1769365659980,0.257153,2857.4,2854.8,5.7949836]
[1769365660182,0.257153,2857.2,2854.9,2.054]
[1769365660480,0.257153,2857.1,2854.8,0.2379836]
[1769365660681,0.257153,2857.1,2854.9,5.557]
[1769365661078,0.17526,2857.0,2854.9,5.557]
[1769365661480,0.257153,2857.7,2855.0,0.2379836]
[1769365661679,4.58253312,2857.6,2855.0,0.2379836]
[1769365661872,4.58253312,2857.5,2855.0,0.2379836]
[1769365662076,0.257153,2857.3,2855.0,0.2379836]
[1769365662277,0.257153,2857.1,2855.1,5.558]
[1769365662577,0.17525,2857.2,2855.2,0.2379836]
[1769365662781,0.257153,2857.1,2853.9,0.2379836]
[1769365662975,0.257153,2856.5,2854.0,3.503]
[1769365663171,0.257153,2856.3,2854.0,5.558]
[1769365663376,0.17532,2856.0,2854.0,5.558]
[1769365663678,0.0031544,2856.0,2854.1,0.2379836]
[1769365664276,0.0031544,2856.0,2854.2,5.208]
[1769365664483,0.0031544,2856.0,2854.3,0.2379836]
[1769365664683,0.0031544,2856.0,2854.4,5.4459836]
[1769365664885,0.0031544,2856.0,2854.5,0.2379836]
[1769365665081,0.0031544,2856.0,2853.8,1.56550569]
[1769365665282,0.17533,2855.8,2853.8,1.56550569]
[1769365665587,0.0031544,2856.0,2853.9,0.2379836]
[1769365666285,0.257153,2857.2,2853.9,0.2379836]
[1769365666477,0.257153,2857.2,2854.1,0.2379836]
[1769365666678,0.257153,2857.2,2853.8,1.32752209]
[1769365666679,0.257153,2857.2,2854.3,0.2379836]
[1769365666881,0.17525,2857.1,2854.4,2.055]
[1769365667077,0.17525,2857.1,2854.5,0.2379836]
[1769365667286,0.00365515,2857.1,2854.7,0.2379836]
[1769365667783,0.00365515,2857.1,2854.9,0.2379836]
[1769365668385,4.59852971,2857.0,2854.9,0.2379836]
[1769365668582,0.257153,2856.8,2854.3,0.2379836]
[1769365668779,0.257153,2856.1,2853.8,1.32752209]
[1769365668979,0.17536,2855.4,2853.8,6.53652209]
[1769365669275,0.257153,2855.9,2853.8,6.77450569]
[1769365669276,0.432483,2855.9,2853.8,6.77450569]
[1769365669480,0.432503,2855.5,2853.8,1.32752209]
[1769365669785,4.59329895,2855.4,2853.8,1.32752209]
[1769365669985,0.432503,2855.5,2853.8,1.32752209]
[1769365670284,0.257153,2855.3,2853.8,1.32752209]
[1769365670481,4.58909977,2855.2,2853.8,1.32752209]
[1769365670678,5.02128515,2855.1,2853.8,1.32752209]
[1769365670874,0.00454592,2855.1,2853.8,3.38252209]
[1769365671284,0.00454592,2855.1,2853.8,1.32752209]
[1769365671586,0.17531,2856.2,2853.9,0.2379836]
[1769365671786,4.5879801,2856.1,2853.9,0.2379836]
[1769365672089,0.17531,2856.2,2853.9,0.2379836]
[1769365672281,4.24496482,2856.9,2853.9,0.2379836]
[1769365672482,4.58667704,2856.8,2853.9,0.2379836]
[1769365672781,0.17523,2857.4,2853.9,0.2379836]
[1769365672980,4.76423543,2857.3,2854.1,0.2379836]
[1769365673180,6.14129689,2858.4,2854.1,0.2379836]
[1769365673181,0.257153,2858.0,2854.1,0.2379836]
[1769365673384,0.257153,2857.3,2854.3,0.2379836]
[1769365673685,0.257153,2856.9,2854.4,0.2379836]
[1769365673885,0.1753,2856.3,2854.5,3.154]
[1769365674086,0.17897085,2856.3,2854.5,3.154]
[1769365675187,0.257153,2855.4,2853.8,1.32752209]
[1769365675387,0.00367085,2856.3,2853.8,1.32752209]
[1769365675388,0.17541,2854.6,2853.8,1.32752209]
[1769365676588,0.17536,2855.3,2853.8,1.32752209]
[1769365676885,4.76422401,2855.2,2853.8,1.32752209]
[1769365677088,4.58885401,2855.1,2853.8,1.32752209]
[1769365677285,0.257153,2855.6,2853.8,1.32752209]
[1769365677883,4.32685782,2856.2,2853.9,0.2379836]
[1769365678084,4.59218435,2856.1,2853.9,0.2379836]
[1769365678387,4.59218435,2856.0,2853.9,0.2069836]